fUST/lending_fUST_20240201
["ID","MTS","AMOUNT","RATE_DAILY","PERIOD"]
[313083213,1706731846983,-500.0,0.00019452,2]
[313083214,1706731846992,-500.0,0.00019452,2]
[313083215,1706731847001,-500.0,0.00019452,2]
[313083216,1706731847010,-500.0,0.00019452,2]
[313083217,1706731847019,-500.0,0.00019452,2]
[313083218,1706731847029,-1369.02,0.00019452,2]
[313083219,1706731847038,-500.0,0.00019452,2]
[313083220,1706731847047,-500.0,0.00019452,2]
[313083221,1706731847056,-500.0,0.00019452,2]
[313083222,1706731847064,-534.97764921,0.00019452,2]
[313083223,1706731847074,-500.0,0.00019452,2]
[313083224,1706731847083,-2265.04,0.00019452,2]
[313083225,1706731847092,-500.0,0.00019452,2]
[313083226,1706731847101,-813.49,0.00019452,2]
[313083227,1706731847110,-500.0,0.00019452,2]
[313083228,1706731847119,-500.0,0.00019452,2]
[313083229,1706731847127,-1027.64,0.00019452,2]
[313083230,1706731847137,-835.72,0.00019452,2]
[313083231,1706731847146,-500.0,0.00019452,2]
[313083232,1706731847154,-500.0,0.00019452,2]
[313083233,1706731847163,-500.0,0.00019452,2]
[313083234,1706731847172,-1075.41,0.00019452,2]
[313083235,1706731847181,-500.0,0.00019452,2]
[313083236,1706731847190,-1308.1,0.00019452,2]
[313083237,1706731847200,-1858.84,0.00019452,2]
[313083238,1706731847209,-1155.08,0.00019452,2]
[313083239,1706731847218,-500.0,0.00019452,2]
[313083240,1706731847227,-500.0,0.00019452,2]
[313083241,1706731847236,-500.0,0.00019452,2]
[313083242,1706731847245,-852.01,0.00019452,2]
[313083243,1706731847254,-2957.65,0.00019452,2]
[313083244,1706731847263,-500.0,0.00019452,2]
[313083245,1706731847275,-555.41,0.00019452,2]
[313083246,1706731847285,-500.0,0.00019452,2]
[313083247,1706731847295,-500.0,0.00019452,2]
[313083248,1706731847305,-1331.59,0.00019452,2]
[313083249,1706731847314,-11506.75,0.00019452,2]
[313083250,1706731847323,-424.25997704,0.00019452,2]
[313083251,1706731847332,-269.33328314,0.00019452,2]
[313083252,1706731847342,-500.0,0.00019452,2]
[313083253,1706731847351,-500.0,0.00019452,2]
[313083254,1706731847360,-500.0,0.00019452,2]
[313083255,1706731847370,-506.15,0.00019452,2]
[313083256,1706731847379,-500.0,0.00019452,2]
[313083257,1706731847389,-5440.53,0.00019452,2]
[313083258,1706731847398,-5560.68,0.00019452,2]
[313083259,1706731847408,-767.11,0.00019452,2]
[313083260,1706731847417,-594.0,0.00019452,2]
[313083261,1706731847426,-500.0,0.00019452,2]
[313083262,1706731847436,-526.01,0.00019452,2]
[313083263,1706731847445,-679.82,0.00019452,2]
[313083264,1706731847454,-2213.13,0.00019452,2]
[313083265,1706731847463,-938.7,0.00019452,2]
[313083266,1706731847472,-8296.05,0.00019452,2]
[313083267,1706731847482,-2016.93,0.00019452,2]
[313083268,1706731847491,-500.0,0.00019452,2]
[313083269,1706731847501,-2474.82,0.00019452,2]
[313083270,1706731847510,-1962.36,0.00019452,2]
[313083271,1706731847523,-1192.27,0.00019452,2]
[313083272,1706731847532,-1083.4,0.00019452,2]
[313083273,1706731847542,-500.0,0.00019452,2]
[313083274,1706731847551,-500.0,0.00019452,2]
[313083275,1706731847560,-828.41,0.00019452,2]
[313083276,1706731847570,-500.0,0.00019452,2]
[313083277,1706731847579,-837.08,0.00019452,2]
[313083278,1706731847588,-500.0,0.00019452,2]
[313083279,1706731847597,-796.30102454,0.00019724,2]
[313083280,1706731847701,-500.0,0.00019726,2]
[313083281,1706731847711,-331.03874954,0.00019726,2]
[313083282,1706731847720,-500.0,0.00019726,2]
[313083283,1706731847730,-500.0,0.00019726,2]
[313083284,1706731847739,-500.0,0.00019726,2]
[313083285,1706731847749,-500.0,0.00019726,2]
[313083286,1706731847759,-500.0,0.00019726,2]
[313083287,1706731847773,-809.55,0.00019726,2]
[313083288,1706731847782,-500.0,0.00019726,2]
[313083289,1706731847792,-500.0,0.00019726,2]
[313083290,1706731847801,-500.0,0.00019726,2]
[313083291,1706731847812,-500.0,0.00019726,2]
[313083292,1706731847821,-500.0,0.00019726,2]
[313083293,1706731847830,-500.0,0.00019726,2]
[313083294,1706731847840,-1369.02,0.00019726,2]
[313083295,1706731847850,-500.0,0.00019726,2]
[313083296,1706731847859,-500.0,0.00019726,2]
[313083297,1706731847870,-2265.04,0.00019726,2]
[313083298,1706731847880,-500.0,0.00019726,2]
[313083299,1706731847890,-813.49,0.00019726,2]
[313083300,1706731847901,-500.0,0.00019726,2]
[313083301,1706731847910,-500.0,0.00019726,2]
[313083302,1706731847918,-1027.64,0.00019726,2]
[313083303,1706731847927,-835.72,0.00019726,2]
[313083304,1706731847937,-423.32,0.00019726,2]
[313083305,1706731847946,-500.0,0.00019726,2]
[313083306,1706731847956,-500.0,0.00019726,2]
[313083307,1706731847965,-1075.41,0.00019726,2]
[313083308,1706731847974,-500.0,0.00019726,2]
[313083309,1706731847983,-1308.1,0.00019726,2]
[313083310,1706731847992,-1858.84,0.00019726,2]
[313083311,1706731848002,-1155.08,0.00019726,2]
[313083312,1706731848011,-500.0,0.00019726,2]
[313083313,1706731848020,-500.0,0.00019726,2]
[313083314,1706731848030,-500.0,0.00019726,2]
[313083315,1706731848038,-852.01,0.00019726,2]
[313083316,1706731848047,-2957.65,0.00019726,2]
[313083317,1706731848056,-500.0,0.00019726,2]
[313083318,1706731848065,-555.41,0.00019726,2]
[313083319,1706731848073,-500.0,0.00019726,2]
[313083320,1706731848083,-500.0,0.00019726,2]
[313083321,1706731848092,-1331.59,0.00019726,2]
[313083322,1706731848101,-11506.75,0.00019726,2]
[313083323,1706731848110,-500.0,0.00019726,2]
[313083324,1706731848119,-500.0,0.00019726,2]
[313083325,1706731848129,-500.0,0.00019726,2]
[313083326,1706731848138,-506.15,0.00019726,2]
[313083327,1706731848147,-500.0,0.00019726,2]
[313083328,1706731848156,-5440.53,0.00019726,2]
[313083329,1706731848165,-5560.68,0.00019726,2]
[313083330,1706731848173,-767.11,0.00019726,2]
[313083331,1706731848182,-594.0,0.00019726,2]
[313083332,1706731848191,-186.8035473,0.00019726,2]
[313083333,1706731848200,-526.01,0.00019726,2]
[313083334,1706731848208,-679.82,0.00019726,2]
[313083335,1706731848218,-2213.13,0.00019726,2]
[313083336,1706731848227,-938.7,0.00019726,2]
[313083337,1706731848237,-6891.70911855,0.00019726,2]
[313083371,1706732128504,280.0,0.00021769,7]
[313083379,1706732429060,280.0,0.00021756,7]
[313083382,1706732707220,154.98450155,0.00016993,3]
[313083383,1706732725225,154.98450155,0.00016172,3]
[313083384,1706732729045,280.0,0.00021743,7]
[313083385,1706732745238,154.98450155,0.00016172,3]
[313083398,1706732983606,19002.9680005,0.00015995,2]
[313083436,1706733031637,-166.001232,0.00016981,2]
[313083437,1706733031647,-2106.9014739,0.00016982,2]
[313083438,1706733031655,-639.50167045,0.00016983,2]
[313083439,1706733031665,-1933.56440452,0.00016983,2]
[313083440,1706733031676,-16996.83991546,0.00016983,2]
[313083441,1706733031685,-20928.42010266,0.00016984,2]
[313083442,1706733031694,-18506.1310871,0.00016984,2]
[313083443,1706733031710,-1223.28488042,0.00016984,2]
[313083444,1706733031719,-172.990764,0.00016996,2]
[313083445,1706733031728,-2643.292957,0.00017,2]
[313083446,1706733031738,-154.98450155,0.00017258,3]
[313083447,1706733031747,-211.94909997,0.00017966,2]
[313083448,1706733031756,-161.25377487,0.00017967,2]
[313083449,1706733031766,-773.57734513,0.00017969,2]
[313083509,1706733037965,-608.8922524,0.0001698,2]
[313083510,1706733037975,-4442.43810866,0.00017969,2]
[313083511,1706733037985,-262.71950685,0.00017972,2]
[313083512,1706733037995,-3840.07445734,0.00017996,2]
[313083513,1706733038005,-200.0,0.0001868,2]
[313083514,1706733038014,-187.54029712,0.00018693,2]
[313083515,1706733038024,-1543.84635439,0.00018792,2]
[313083516,1706733038037,-13261.95075509,0.00019078,2]
[313083517,1706733038046,-153.0000001,0.000191,2]
[313083518,1706733038055,-2710.54181066,0.00019176,2]
[313083519,1706733038065,-2040.63936826,0.00019176,2]
[313083520,1706733038075,-688.5172537,0.00019176,2]
[313083521,1706733038084,-366.29145913,0.00019176,2]
[313083522,1706733038093,-155.04960279,0.00019176,2]
[313083523,1706733038107,-5092.43181338,0.00019176,2]
[313083524,1706733038116,-155.0294556,0.00019176,2]
[313083525,1706733038127,-4803.4914738,0.00019177,2]
[313083526,1706733038136,-176272.39798911,0.00019178,2]
[313083527,1706733038146,-500.0,0.00019178,2]
[313083528,1706733038156,-500.0,0.00019178,2]
[313083529,1706733038165,-500.0,0.00019178,2]
[313083530,1706733038174,-500.0,0.00019178,2]
[313083531,1706733038183,-325.83874545,0.00019178,2]
[313083532,1706733038192,-500.0,0.00019178,2]
[313083533,1706733038202,-500.0,0.00019178,2]
[313083534,1706733038211,-500.0,0.00019178,2]
[313083535,1706733038223,-500.0,0.00019178,2]
[313083536,1706733038232,-500.0,0.00019178,2]
[313083537,1706733038241,-500.0,0.00019178,2]
[313083538,1706733038250,-1370.14,0.00019178,2]
[313083539,1706733038259,-500.0,0.00019178,2]
[313083540,1706733038267,-500.0,0.00019178,2]
[313083541,1706733038276,-500.0,0.00019178,2]
[313083542,1706733038285,-500.0,0.00019178,2]
[313083543,1706733038295,-500.0,0.00019178,2]
[313083544,1706733038305,-500.0,0.00019178,2]
[313083545,1706733038314,-500.0,0.00019178,2]
[313083546,1706733038323,-577.72132354,0.00019178,2]
[313083547,1706733038332,-513.93419891,0.00019178,2]
[313083548,1706733038341,-500.0,0.00019178,2]
[313083549,1706733038350,-489.10048454,0.00019178,2]
[313083550,1706733038359,-500.0,0.00019178,2]
[313083551,1706733038368,-500.0,0.00019178,2]
[313083552,1706733038377,-500.0,0.00019178,2]
[313083553,1706733038387,-803.46,0.00019178,2]
[313083554,1706733038396,-500.0,0.00019178,2]
[313083555,1706733038405,-500.0,0.00019178,2]
[313083556,1706733038415,-372.85777824,0.00019178,2]
[313083557,1706733038424,-642.3454458,0.00019178,2]
[313083558,1706733038433,-500.0,0.00019178,2]
[313083559,1706733038443,-500.0,0.00019178,2]
[313083560,1706733038452,-500.0,0.00019178,2]
[313083561,1706733038461,-500.0,0.00019178,2]
[313083562,1706733038472,-500.0,0.00019178,2]
[313083563,1706733038482,-500.0,0.00019178,2]
[313083564,1706733038492,-500.0,0.00019178,2]
[313083565,1706733038501,-469.98098775,0.00019178,2]
[313083566,1706733038511,-500.0,0.00019178,2]
[313083567,1706733038520,-500.0,0.00019178,2]
[313083568,1706733038529,-316.92065111,0.00019178,2]
[313083569,1706733038539,-500.0,0.00019178,2]
[313083570,1706733038548,-500.0,0.00019178,2]
[313083571,1706733038558,-500.0,0.00019178,2]
[313083572,1706733038568,-571.96371356,0.00019178,2]
[313083573,1706733038577,-500.0,0.00019178,2]
[313083574,1706733038587,-500.0,0.00019178,2]
[313083575,1706733038596,-500.0,0.00019178,2]
[313083576,1706733038605,-500.0,0.00019178,2]
[313083577,1706733038614,-565.95,0.00019178,2]
[313083578,1706733038623,-500.0,0.00019178,2]
[313083579,1706733038632,-500.0,0.00019178,2]
[313083580,1706733038641,-2176.56,0.00019178,2]
[313083581,1706733038650,-500.0,0.00019178,2]
[313083582,1706733038659,-500.0,0.00019178,2]
[313083583,1706733038669,-781.71,0.00019178,2]
[313083584,1706733038678,-500.0,0.00019178,2]
[313083585,1706733038687,-945.55,0.00019178,2]
[313083586,1706733038696,-897.42,0.00019178,2]
[313083587,1706733038705,-500.0,0.00019178,2]
[313083588,1706733038717,-500.0,0.00019178,2]
[313083589,1706733038726,-500.0,0.00019178,2]
[313083590,1706733038735,-568.35400767,0.00019178,2]
[313083591,1706733038744,-500.0,0.00019178,2]
[313083592,1706733038754,-500.0,0.00019178,2]
[313083593,1706733038763,-500.0,0.00019178,2]
[313083594,1706733038773,-500.0,0.00019178,2]
[313083595,1706733038782,-500.0,0.00019178,2]
[313083596,1706733038793,-500.0,0.00019178,2]
[313083597,1706733038802,-500.0,0.00019178,2]
[313083598,1706733038812,-500.0,0.00019178,2]
[313083599,1706733038821,-238.65381397,0.00019178,2]
[313083600,1706733038831,-500.0,0.00019178,2]
[313083601,1706733038840,-993.12,0.00019178,2]
[313083602,1706733038849,-500.0,0.00019178,2]
[313083603,1706733038858,-500.0,0.00019178,2]
[313083604,1706733038867,-500.0,0.00019178,2]
[313083605,1706733038876,-500.0,0.00019178,2]
[313083606,1706733038885,-500.0,0.00019178,2]
[313083607,1706733038895,-553.73391012,0.00019178,2]
[313083608,1706733038904,-500.0,0.00019178,2]
[313083609,1706733038913,-500.0,0.00019178,2]
[313083610,1706733038922,-500.0,0.00019178,2]
[313083611,1706733038932,-784.02,0.00019178,2]
[313083612,1706733038941,-525.82967829,0.00019178,2]
[313083613,1706733038950,-500.0,0.00019178,2]
[313083614,1706733038959,-534.99,0.00019178,2]
[313083615,1706733038970,-509.16728415,0.00019178,2]
[313083616,1706733038980,-500.0,0.00019178,2]
[313083617,1706733038989,-989.63,0.00019178,2]
[313083618,1706733038998,-500.0,0.00019178,2]
[313083619,1706733039007,-500.0,0.00019178,2]
[313083620,1706733039017,-1535.8,0.00019178,2]
[313083621,1706733039026,-500.0,0.00019178,2]
[313083622,1706733039036,-1035.87,0.00019178,2]
[313083623,1706733039045,-500.0,0.00019178,2]
[313083624,1706733039055,-500.0,0.00019178,2]
[313083625,1706733039065,-500.0,0.00019178,2]
[313083626,1706733039074,-500.0,0.00019178,2]
[313083627,1706733039083,-1707.43,0.00019178,2]
[313083628,1706733039092,-500.0,0.00019178,2]
[313083629,1706733039102,-500.0,0.00019178,2]
[313083630,1706733039111,-500.0,0.00019178,2]
[313083631,1706733039121,-2829.67,0.00019178,2]
[313083632,1706733039133,-500.0,0.00019178,2]
[313083633,1706733039142,-500.0,0.00019178,2]
[313083634,1706733039152,-1277.99,0.00019178,2]
[313083636,1706733039161,-500.0,0.00019178,2]
[313083638,1706733039169,-500.0,0.00019178,2]
[313083640,1706733039178,-500.0,0.00019178,2]
[313083642,1706733039187,-500.0,0.00019178,2]
[313083644,1706733039196,-500.0,0.00019178,2]
[313083646,1706733039205,-513.49269041,0.00019178,2]
[313083648,1706733039215,-500.0,0.00019178,2]
[313083649,1706733039224,-500.0,0.00019178,2]
[313083650,1706733039233,-500.0,0.00019178,2]
[313083651,1706733039242,-500.0,0.00019178,2]
[313083652,1706733039251,-500.0,0.00019178,2]
[313083653,1706733039260,-500.0,0.00019178,2]
[313083654,1706733039269,-500.0,0.00019178,2]
[313083655,1706733039278,-5336.84,0.00019178,2]
[313083656,1706733039288,-777.93,0.00019178,2]
[313083657,1706733039297,-11003.94,0.00019178,2]
[313083658,1706733039306,-504.87,0.00019178,2]
[313083659,1706733039316,-500.0,0.00019178,2]
[313083660,1706733039325,-5221.53,0.00019178,2]
[313083661,1706733039334,-500.0,0.00019178,2]
[313083662,1706733039343,-7640.5,0.00019178,2]
[313083663,1706733039353,-500.0,0.00019178,2]
[313083664,1706733039362,-1062.91,0.00019178,2]
[313083665,1706733039459,-1941.75,0.00019178,2]
[313083666,1706733039470,-500.0,0.00019178,2]
[313083667,1706733039479,-453.08497735,0.00019178,2]
[313083668,1706733039488,-737.52,0.00019178,2]
[313083669,1706733039498,-500.0,0.00019178,2]
[313083670,1706733039508,-474.96707827,0.00019178,2]
[313083671,1706733039517,-500.0,0.00019178,2]
[313083672,1706733039526,-500.0,0.00019178,2]
[313083673,1706733039536,-646.25,0.00019178,2]
[313083674,1706733039545,-500.0,0.00019178,2]
[313083675,1706733039556,-2119.24,0.00019178,2]
[313083676,1706733039565,-2016.2,0.00019178,2]
[313083677,1706733039575,-834.39,0.00019178,2]
[313083678,1706733039584,-500.0,0.00019178,2]
[313083679,1706733039593,-500.0,0.00019178,2]
[313083680,1706733039602,-2459.21,0.00019178,2]
[313083681,1706733039611,-500.0,0.00019178,2]
[313083682,1706733039622,-1191.18,0.00019178,2]
[313083683,1706733039633,-500.0,0.00019178,2]
[313083684,1706733039643,-500.0,0.00019178,2]
[313083685,1706733039653,-187.69311989,0.00019178,2]
[313083686,1706733039662,-500.0,0.00019178,2]
[313083687,1706733039671,-171.81118109,0.00019178,2]
[313083688,1706733039681,-500.0,0.00019178,2]
[313083689,1706733039690,-166.109927,0.00019178,2]
[313083690,1706733039698,-153.0,0.00019178,2]
[313083691,1706733039707,-402.2141548,0.00019178,2]
[313083692,1706733039716,-187.54029712,0.00019352,2]
[313083693,1706733039725,-1868.50136376,0.00019451,2]
[313083694,1706733039734,-500.0,0.00019451,2]
[313083695,1706733039743,-500.0,0.00019451,2]
[313083696,1706733039753,-500.0,0.00019452,2]
[313083697,1706733039762,-500.0,0.00019452,2]
[313083698,1706733039772,-500.0,0.00019452,2]
[313083699,1706733039781,-500.0,0.00019452,2]
[313083700,1706733039790,-500.0,0.00019452,2]
[313083701,1706733039800,-500.0,0.00019452,2]
[313083702,1706733039809,-500.0,0.00019452,2]
[313083704,1706733039818,-1370.14,0.00019452,2]
[313083705,1706733039827,-500.0,0.00019452,2]
[313083706,1706733039836,-500.0,0.00019452,2]
[313083707,1706733039845,-803.46,0.00019452,2]
[313083708,1706733039854,-500.0,0.00019452,2]
[313083709,1706733039863,-500.0,0.00019452,2]
[313083710,1706733039873,-500.0,0.00019452,2]
[313083711,1706733039882,-500.0,0.00019452,2]
[313083713,1706733039891,-500.0,0.00019452,2]
[313083715,1706733039900,-565.95,0.00019452,2]
[313083717,1706733039908,-2176.56,0.00019452,2]
[313083719,1706733039918,-781.71,0.00019452,2]
[313083721,1706733039927,-945.55,0.00019452,2]
[313083723,1706733039936,-897.42,0.00019452,2]
[313083725,1706733039945,-500.0,0.00019452,2]
[313083726,1706733039955,-500.0,0.00019452,2]
[313083728,1706733039964,-500.0,0.00019452,2]
[313083729,1706733039973,-993.12,0.00019452,2]
[313083730,1706733039982,-500.0,0.00019452,2]
[313083731,1706733039991,-500.0,0.00019452,2]
[313083732,1706733040000,-784.02,0.00019452,2]
[313083733,1706733040010,-500.0,0.00019452,2]
[313083734,1706733040019,-534.99,0.00019452,2]
[313083735,1706733040028,-989.63,0.00019452,2]
[313083736,1706733040038,-500.0,0.00019452,2]
[313083737,1706733040047,-1535.8,0.00019452,2]
[313083738,1706733040057,-1035.87,0.00019452,2]
[313083740,1706733040066,-500.0,0.00019452,2]
[313083741,1706733040076,-500.0,0.00019452,2]
[313083742,1706733040086,-1707.43,0.00019452,2]
[313083743,1706733040095,-500.0,0.00019452,2]
[313083744,1706733040107,-372.95353061,0.00019452,2]
[313083745,1706733040116,-2829.67,0.00019452,2]
[313083746,1706733040126,-500.0,0.00019452,2]
[313083747,1706733040136,-1277.99,0.00019452,2]
[313083748,1706733040145,-500.0,0.00019452,2]
[313083749,1706733040155,-500.0,0.00019452,2]
[313083750,1706733040164,-500.0,0.00019452,2]
[313083751,1706733040173,-500.0,0.00019452,2]
[313083752,1706733040183,-500.0,0.00019452,2]
[313083753,1706733040192,-500.0,0.00019452,2]
[313083754,1706733040202,-500.0,0.00019452,2]
[313083755,1706733040211,-500.0,0.00019452,2]
[313083756,1706733040222,-5336.84,0.00019452,2]
[313083757,1706733040231,-777.93,0.00019452,2]
[313083758,1706733040240,-11003.94,0.00019452,2]
[313083759,1706733040250,-504.87,0.00019452,2]
[313083760,1706733040260,-500.0,0.00019452,2]
[313083761,1706733040269,-5221.53,0.00019452,2]
[313083762,1706733040278,-500.0,0.00019452,2]
[313083763,1706733040288,-7640.5,0.00019452,2]
[313083764,1706733040298,-1062.91,0.00019452,2]
[313083765,1706733040307,-1941.75,0.00019452,2]
[313083766,1706733040316,-500.0,0.00019452,2]
[313083767,1706733040326,-737.52,0.00019452,2]
[313083768,1706733040334,-296.71682223,0.00019452,2]
[313083769,1706733040343,-500.0,0.00019452,2]
[313083770,1706733040352,-646.25,0.00019452,2]
[313083771,1706733040362,-500.0,0.00019452,2]
[313083772,1706733040371,-2119.24,0.00019452,2]
[313083773,1706733040381,-2016.2,0.00019452,2]
[313083774,1706733040390,-834.39,0.00019452,2]
[313083775,1706733040399,-500.0,0.00019452,2]
[313083776,1706733040408,-2459.21,0.00019452,2]
[313083777,1706733040417,-1191.18,0.00019452,2]
[313083778,1706733040427,-500.49854135,0.00019452,2]
[313083779,1706733040435,-500.0,0.00019452,2]
[313083780,1706733040444,-217.7891221,0.00019452,2]
[313083781,1706733040453,-622.24022043,0.00019675,2]
[313083782,1706733040462,-500.0,0.00019726,2]
[313083783,1706733040473,-500.0,0.00019726,2]
[313083784,1706733040482,-500.0,0.00019726,2]
[313083785,1706733040491,-500.0,0.00019726,2]
[313083786,1706733040500,-1370.14,0.00019726,2]
[313083787,1706733040509,-500.0,0.00019726,2]
[313083788,1706733040518,-803.46,0.00019726,2]
[313083789,1706733040527,-151.0,0.00019726,2]
[313083790,1706733040536,-299.73002939,0.00019726,2]
[313083791,1706733040546,-500.0,0.00019726,2]
[313083792,1706733040555,-500.0,0.00019726,2]
[313083793,1706733040564,-560.91,0.00019726,2]
[313083794,1706733040574,-500.0,0.00019726,2]
[313083795,1706733040582,-500.0,0.00019726,2]
[313083796,1706733040591,-151.0,0.00019726,2]
[313083797,1706733040600,-565.95,0.00019726,2]
[313083798,1706733040609,-2176.56,0.00019726,2]
[313083799,1706733040619,-781.71,0.00019726,2]
[313083800,1706733040628,-945.55,0.00019726,2]
[313083801,1706733040638,-897.42,0.00019726,2]
[313083802,1706733040647,-500.0,0.00019726,2]
[313083803,1706733040656,-226.96262,0.00019726,2]
[313083804,1706733040666,-500.0,0.00019726,2]
[313083805,1706733040675,-993.12,0.00019726,2]
[313083806,1706733040684,-226.96262,0.00019726,2]
[313083807,1706733040694,-500.0,0.00019726,2]
[313083808,1706733040704,-258.58735297,0.00019726,2]
[313083809,1706733040712,-784.02,0.00019726,2]
[313083810,1706733040721,-500.0,0.00019726,2]
[313083811,1706733040730,-534.99,0.00019726,2]
[313083812,1706733040739,-989.63,0.00019726,2]
[313083813,1706733040748,-500.0,0.00019726,2]
[313083814,1706733040757,-1535.8,0.00019726,2]
[313083816,1706733040767,-1035.87,0.00019726,2]
[313083818,1706733040776,-500.0,0.00019726,2]
[313083819,1706733040785,-500.0,0.00019726,2]
[313083820,1706733040794,-1707.43,0.00019726,2]
[313083821,1706733040802,-500.0,0.00019726,2]
[313083822,1706733040811,-2829.67,0.00019726,2]
[313083823,1706733040820,-1277.99,0.00019726,2]
[313083824,1706733040829,-500.0,0.00019726,2]
[313083825,1706733040838,-177.443894,0.00019726,2]
[313083826,1706733040847,-177.443894,0.00019726,2]
[313083827,1706733040857,-177.443894,0.00019726,2]
[313083828,1706733040866,-177.443894,0.00019726,2]
[313083830,1706733040875,-500.0,0.00019726,2]
[313083831,1706733040884,-500.0,0.00019726,2]
[313083833,1706733040893,-500.0,0.00019726,2]
[313083835,1706733040902,-151.0,0.00019726,2]
[313083836,1706733040910,-500.0,0.00019726,2]
[313083837,1706733040919,-500.0,0.00019726,2]
[313083838,1706733040929,-5336.84,0.00019726,2]
[313083840,1706733040938,-777.93,0.00019726,2]
[313083841,1706733040947,-11003.94,0.00019726,2]
[313083842,1706733040957,-504.87,0.00019726,2]
[313083843,1706733040966,-500.0,0.00019726,2]
[313083844,1706733040977,-5221.53,0.00019726,2]
[313083845,1706733040986,-7640.5,0.00019726,2]
[313083846,1706733040995,-1062.91,0.00019726,2]
[313083847,1706733041004,-1941.75,0.00019726,2]
[313083848,1706733041013,-1762.947639,0.00019726,2]
[313083849,1706733041023,-1762.947639,0.00019726,2]
[313083850,1706733041033,-1762.947639,0.00019726,2]
[313083851,1706733041042,-1762.947639,0.00019726,2]
[313083852,1706733041050,-737.52,0.00019726,2]
[313083853,1706733041061,-500.0,0.00019726,2]
[313083854,1706733041071,-646.25,0.00019726,2]
[313083855,1706733041081,-500.0,0.00019726,2]
[313083856,1706733041090,-2119.24,0.00019726,2]
[313083857,1706733041100,-2016.2,0.00019726,2]
[313083858,1706733041109,-834.39,0.00019726,2]
[313083859,1706733041118,-500.0,0.00019726,2]
[313083860,1706733041128,-2459.21,0.00019726,2]
[313083861,1706733041137,-1191.18,0.00019726,2]
[313083862,1706733041146,-500.0,0.00019726,2]
[313083863,1706733041154,-549.51159173,0.00019998,2]
[313083864,1706733041163,-500.0,0.00019999,2]
[313083865,1706733041174,-323.57048434,0.0002,2]
[313083866,1706733041183,-154.98450155,0.0002,2]
[313083867,1706733041191,-1200.08348294,0.0002,2]
[313083868,1706733041200,-679.86163762,0.0002,2]
[313083869,1706733041211,-44380.68568654,0.0002,2]
[313083870,1706733041222,-200.0,0.0002,2]
[313083871,1706733041231,-178.21239998,0.0002,2]
[313083872,1706733041240,-154.98450155,0.0002,2]
[313083873,1706733041249,-154.98450155,0.0002,2]
[313083874,1706733041258,-500.0,0.0002,2]
[313083875,1706733041267,-151.457837,0.0002,2]
[313083876,1706733041276,-500.0,0.0002,2]
[313083877,1706733041285,-500.0,0.0002,2]
[313083878,1706733041294,-1370.14,0.0002,2]
[313083879,1706733041304,-803.46,0.0002,2]
[313083880,1706733041312,-500.0,0.0002,2]
[313083881,1706733041322,-500.0,0.0002,2]
[313083882,1706733041331,-560.91,0.0002,2]
[313083883,1706733041340,-500.0,0.0002,2]
[313083884,1706733041349,-151.0,0.0002,2]
[313083885,1706733041358,-151.0,0.0002,2]